Cogmind - Beta 16 @@@ ROGUE MODE // 2026.01.29 @ 16:29:46 Player: chebyrekser Result: Escaped! Performance ------------- Evolutions (9) 4500 Regions Visited (22) 4400 Robots Destroyed (205) 1025 Value Destroyed (7680) 7680 Prototype IDs (52) 1040 Alien Tech Used (3) 600 Bonus (10606) 10606 TOTAL SCORE: 29851 Bonus ------- High Alert Combat Kills 205 Follower Combat Kills 3524 Network Hubs Disabled 400 Registered with UFD 300 Met Optimus in HQ 500 Met Zhirov 300 Met Warlord at Base 500 MAIN.C Attacked Warlord 500 Warlord Defense Kills 1090 Built Enhanced Grunts 300 A7 Reached Mainframe 300 Met R17 at Cetus 500 Met R17 at Research 2000 Win 3000 Friendly Fire -2813 Cogmind --------- Core Integrity 1551/1600 Matter 185/300 Energy 153/160 System Corruption 1% Temperature Cool (2) Movement Walking (176) Ox1 Location To Epsilon Eridani Parts ------- > --- POWER (3) -------- Light Fission Core > --- PROPULSION (3) --- Advanced Myomer Leg Enhanced Biometal Leg (fused) Experimental Myomer Leg > --- UTILITY (17) ----- Medium Storage Unit Experimental Sensor Array Advanced Signal Interpreter Long-range Terrain Scanner Advanced Terrain Scan Processor Improved Transmission Jammer Advanced Reaction Control System Improved Shield Generator Advanced Hacking Suite Wardrone Bay (0/1) > --- WEAPON (3) ------- Null Cannon > --- INVENTORY (10) --- Experimental Myomer Leg Centrium Leg Medium Regenerative Plating EM Disruption Field Remote Shield Gamma Rifle Peak State ------------ > --- POWER ------------ Light Fission Core > --- PROPULSION ------- Advanced Myomer Leg Enhanced Biometal Leg Experimental Myomer Leg > --- UTILITY ---------- Medium Storage Unit Experimental Sensor Array Advanced Signal Interpreter Long-range Terrain Scanner Advanced Terrain Scan Processor Improved Transmission Jammer Advanced Hacking Suite Wardrone Bay > --- WEAPON ----------- Null Cannon Smartbomb Launcher > --- INVENTORY -------- Experimental Myomer Leg Centrium Leg Advanced Reaction Control System Medium Regenerative Plating EM Disruption Field Improved Shield Generator Remote Shield Gamma Rifle [Rating: 203] Favorites ----------- Power Light Fission Core Engine Ion Engine Power Core Light Fission Core Reactor Antimatter Reactor Propulsion Enhanced Flexi-carbon Leg Treads Light Treads Leg Enhanced Flexi-carbon Leg Wheel Subdweller Monowheel Utility Experimental Sensor Array Device Experimental Sensor Array Storage Large Storage Unit Processor Advanced Signal Interpreter Hackware Advanced Hacking Suite Protection Medium Regenerative Plating Weapon Heavy Flak Cannon Energy Gun Particle Gun Energy Cannon Matter Neutralizer Ballistic Gun Advanced KE Penetrator Ballistic Cannon Heavy Flak Cannon Launcher Smartbomb Launcher Special Weapon Mining Laser Slashing Weapon Phasing Sabre Build | -11 -10 -10 -8 -6 -6 -6 -6 -6 -5 -5 -5 -5 -4 -4 -4 -4 -4 -3 -3 -3 -2 -1 ------- Run | Yrd Mat Sub Scr Fac Ext Cet Arc Hub Fac Upp Upp Zhi Pro Fac Upp Upp War Pro Res Tes Res Acc Slots Evolved 18 | . . . . 8 . . . . 2 . . . . 2 . . . . 2 . 2 2 Power 1 | . . . . . . . . . 1 . . . . . . . . . . . . . Propulsion 1 | . . . . 1 . . . . . . . . . . . . . . . . . . Utility 15 | . . . . 6 . . . . 1 . . . . 2 . . . . 2 . 2 2 Weapon 1 | . . . . 1 . . . . . . . . . . . . . . . . . . Parts Attached 176 | 8 6 15 4 19 23 17 6 17 12 2 2 4 2 14 2 2 8 . 6 5 1 1 Power 18 | 1 1 1 1 2 3 3 1 1 2 . . . . 2 . . . . . . . . Engine 8 | 1 1 1 1 2 2 . . . . . . . . . . . . . . . . . Core 5 | . . . . . 1 1 1 . 1 . . . . 1 . . . . . . . . Reactor 5 | . . . . . . 2 . 1 1 . . . . 1 . . . . . . . . Propulsion 24 | 2 1 4 1 3 3 1 . 6 . . . . . 1 . . 1 . . 1 . . Treads 3 | 2 1 . . . . . . . . . . . . . . . . . . . . . Leg 18 | . . 1 1 3 3 1 . 6 . . . . . 1 . . 1 . . 1 . . Wheel 3 | . . 3 . . . . . . . . . . . . . . . . . . . . Hover . | . . . . . . . . . . . . . . . . . . . . . . . Flight . | . . . . . . . . . . . . . . . . . . . . . . . Utility 77 | 2 3 2 1 7 11 8 4 5 6 2 . 3 1 7 2 . 5 . 4 2 1 1 Device 37 | 1 . . 1 3 4 5 3 1 3 . . 1 . 4 2 . 2 . 4 2 . 1 Storage 8 | 1 2 . . . . 1 . . 1 . . 2 . . . . 1 . . . . . Processor 9 | . . . . 1 . . . 2 . 2 . . . 2 . . 1 . . . 1 . Hackware 5 | . . . . . 1 . 1 . 2 . . . 1 . . . . . . . . . Protection 18 | . 1 2 . 3 6 2 . 2 . . . . . 1 . . 1 . . . . . Artifact . | . . . . . . . . . . . . . . . . . . . . . . . Weapon 57 | 3 1 8 1 7 6 5 1 5 4 . 2 1 1 4 . 2 2 . 2 2 . . Energy Gun 11 | 2 . 2 . 1 2 1 . . . . . . . . . 1 2 . . . . . Energy Cannon 11 | . . 2 . 1 . . . 2 . . . . 1 2 . . . . 1 2 . . Ballistic Gun 18 | 1 1 2 1 2 2 3 1 3 . . 1 . . 1 . . . . . . . . Ballistic Cannon 7 | . . 1 . 1 . . . . 4 . . 1 . . . . . . . . . . Launcher 6 | . . . . 2 . 1 . . . . . . . 1 . 1 . . 1 . . . Special Weapon 3 | . . 1 . . 1 . . . . . 1 . . . . . . . . . . . Impact Weapon . | . . . . . . . . . . . . . . . . . . . . . . . Slashing Weapon 1 | . . . . . 1 . . . . . . . . . . . . . . . . . Piercing Weapon . | . . . . . . . . . . . . . . . . . . . . . . . Special Melee Weapon . | . . . . . . . . . . . . . . . . . . . . . . . Unidentified Prototypes 25 | . . . . . . 7 . 5 . . . 3 1 2 . . 5 . 1 1 . . Corrupted Parts 8 | . . . . 1 1 . 1 5 . . . . . . . . . . . . . . System Corruption 46 | . . . . 6 4 . 10 26 . . . . . . . . . . . . . . Parts Lost 33 | . . 10 . 1 5 . . 13 . . . . . 2 1 . . . . . . 1 Power 4 | . . 1 . . 2 . . 1 . . . . . . . . . . . . . . Propulsion 9 | . . 4 . 1 . . . 4 . . . . . . . . . . . . . . Utility 10 | . . 3 . . 1 . . 4 . . . . . 2 . . . . . . . . Weapon 10 | . . 2 . . 2 . . 4 . . . . . . 1 . . . . . . 1 Highest Loss Streak 12 | . . 4 . 1 2 . . 12 . . . . . 1 1 . . . . . . 1 To Critical Strikes . | . . . . . . . . . . . . . . . . . . . . . . . Average Backups 11 | 4 12 14 14 13 13 14 14 14 3 8 8 8 7 7 8 8 6 2 8 9 6 8 Power 1 | . 1 1 2 2 2 2 2 1 . . . . . . . 1 . . . . . . Propulsion 1 | 3 3 . . 1 1 2 2 1 . 1 1 1 1 1 1 1 1 . . . 1 1 Utility 4 | . 4 6 5 3 4 5 4 5 1 2 3 2 2 2 3 3 3 1 5 7 5 4 Weapon 3 | . 2 5 5 4 4 5 6 4 1 4 4 3 2 3 3 2 1 1 2 1 . 1 Tool/Special . | . . . . . . . . . . . . . . . . . . . . . . . Unused Backups 46 | . 7 1 7 4 5 4 1 . 1 1 . 1 2 5 . . 3 . 1 . . 3 Power 9 | . . . 1 1 3 3 . . . . . . . . . . 1 . . . . . Propulsion 10 | . 3 . . . 1 . . . . . . . 1 3 . . 1 . . . . 1 Utility 18 | . 3 1 4 2 1 1 1 . . . . 1 . 2 . . . . 1 . . 1 Weapon 7 | . 1 . 2 . . . . . 1 1 . . . . . . 1 . . . . 1 Tool/Special 2 | . . . . 1 . . . . . . . . 1 . . . . . . . . . Average Slot Usage (%) 89 | . 97 99 99 95 95 99 98 94 76 99 99 96 88 92 89 89 93 95 50 50 56 49 Engine 4 | . 14 13 14 6 4 . . . . . . . . . . . . . . . . . Core 2 | . . . . . 1 5 6 5 . 5 5 2 . 4 3 . 5 5 3 4 4 3 Reactor 1 | . . . . . . . . . 4 5 5 5 5 5 5 5 5 5 . . . . Treads 2 | . 28 7 . . . . . . . . . . . . . . . . . . . . Leg 14 | . . 4 17 19 20 20 20 19 17 17 17 17 16 15 15 15 15 15 13 13 12 11 Wheel 2 | . . 15 10 . . . . . . . . . . . . . . . . . . . Device 17 | . 9 10 14 23 18 13 19 22 21 18 16 16 15 21 19 19 21 25 11 13 15 15 Storage 7 | . 14 14 14 6 6 6 6 5 1 5 5 5 5 5 5 5 5 5 4 4 4 3 Processor 5 | . . . . 5 6 6 6 5 5 9 11 11 11 10 10 10 8 5 4 4 8 7 Hackware 4 | . . . . . 1 6 6 5 7 11 11 11 11 10 10 10 8 5 4 4 4 3 Protection 6 | . 2 3 . 11 15 19 11 6 4 5 5 5 5 6 10 10 11 15 2 . . . Energy Gun 4 | . 14 8 14 4 7 5 3 . . . . . . . . . . . . . . . Energy Cannon 4 | . . 6 11 . . . . 3 4 . . . 1 4 6 4 4 5 . 4 4 2 Ballistic Gun 5 | . 14 9 2 12 8 10 8 14 . . . . . 1 1 . 2 5 3 . . . Ballistic Cannon 2 | . . 1 . 1 . . . . 3 17 16 17 14 7 3 9 4 5 . . . . Peak Build Rating 203 | 7 8 15 23 60 71 98 99 102 105 101 101 100 100 130 134 114 129 129 184 182 201 203 Average Rating 82 | 5 7 12 16 54 62 75 92 92 93 99 99 97 97 117 121 109 118 129 172 178 197 190 On Entrance 88 | . 7 8 15 22 60 61 95 99 52 97 100 100 93 99 113 106 114 129 129 172 180 179 Avg Prop Armor Cover (%) 6 | . . 8 5 . . . . 21 . . . . . . 1 . . . . . . . Naked Turns 31 | . . . . . . . . 31 . . . . . . . . . . . . . . Heaviest Build 99 | 14 31 40 37 58 59 65 69 72 82 78 76 76 69 84 99 84 85 85 92 84 95 93 Greatest Support 86 | 40 40 40 40 55 65 65 65 86 86 86 86 86 86 86 86 86 86 85 85 85 85 85 Greatest Overweight (x) 3 | . . 2 1 1 1 . 1 3 . . . . . 1 1 . . . 1 . 1 1 Average Overweight (x) . | . . 1 . . . . . . . . . . . . . . . . . . . . Largest Inventory Capacity 15 | 8 15 15 15 15 15 15 15 15 10 10 10 10 10 10 10 10 10 10 10 10 10 10 Average Capacity 12 | 7 14 15 15 15 15 15 15 14 6 10 10 10 10 10 10 10 10 10 10 10 10 10 Most Carried 15 | 8 15 15 15 15 15 15 15 15 10 10 10 10 10 10 10 10 10 10 10 10 9 10 Average Carried 11 | 5 12 14 14 13 13 14 14 14 4 9 10 9 9 9 9 8 9 10 9 9 6 8 Final Capacity 15 | 8 15 15 15 15 15 15 15 5 10 10 10 10 10 10 10 10 10 10 10 10 10 10 Final Carried 15 | 8 15 15 15 12 15 15 15 5 10 10 10 10 10 10 8 9 10 10 10 10 9 6 Class Distribution -------------------- 36% | Mutant 12% | Scavenger-Tank 12% | Scavenger-Mutant 11% | Hacker-Tank 9% | Scavenger-Gunner 7% | Scavenger-Skirmisher 4% | Tank Dominant Class ---------------- Mutant | -10/Materials Scavenger-Mutant | -10/Subcaves Mutant | -8/Scraptown Scavenger-Tank | -6/Factory Scavenger-Tank | -6/Extension Scavenger-Tank | -6/Cetus Scavenger-Mutant | -6/Archives Scavenger-Skirmisher | -6/Hub_04(d) Scavenger-Tank | -5/Factory Scavenger-Gunner | -5/Upper Caves Scavenger-Gunner | -5/Upper Caves Scavenger-Gunner | -5/Zhirov Scavenger-Gunner | -4/Proximity Caves Hacker-Tank | -4/Factory Hacker-Tank | -4/Upper Caves Hacker-Tank | -4/Upper Caves Hacker-Tank | -4/Warlord Tank | -3/Proximity Caves Mutant | -3/Research Mutant | -3/Testing Skirmisher | -2/Research Mutant | -1/Access Resources | -11 -10 -10 -8 -6 -6 -6 -6 -6 -5 -5 -5 -5 -4 -4 -4 -4 -4 -3 -3 -3 -2 -1 ----------- Run | Yrd Mat Sub Scr Fac Ext Cet Arc Hub Fac Upp Upp Zhi Pro Fac Upp Upp War Pro Res Tes Res Acc Matter Collected 10144 | 294 992 542 290 743 958 267 188 599 308 123 149 250 390 1581 914 140 679 . 132 360 110 135 Remotely 12 | . . . . . . . . . . . . . . 12 . . . . . . . . Salvage Created 8377 | 147 810 569 . 965 1557 38 281 1108 308 . 126 . 267 1330 166 54 282 . . . 159 210 Parts 453 | 16 44 38 . 50 69 15 27 57 9 . 1 . 14 41 4 6 22 . . . 12 28 Haulers Intercepted 2 | . 1 . . . . . . . . . . . . 1 . . . . . . . . Recyclers Shooed 19 | . 7 . . 7 . . . . . . . . . 4 . . . . . 1 . . Parts Field Recycled . | . . . . . . . . . . . . . . . . . . . . . . . Retrieved Matter . | . . . . . . . . . . . . . . . . . . . . . . . Parts Self-Destructed 23 | . . 11 . . . . . . . . 1 . 5 . . 6 . . . . . . Prevented 14 | . . . . . . . . . . 2 . . 9 . 3 . . . . . . . Parts Restored . | . . . . . . . . . . . . . . . . . . . . . . . Kills | -11 -10 -10 -8 -6 -6 -6 -6 -6 -5 -5 -5 -5 -4 -4 -4 -4 -4 -3 -3 -3 -2 -1 ------- Run | Yrd Mat Sub Scr Fac Ext Cet Arc Hub Fac Upp Upp Zhi Pro Fac Upp Upp War Pro Res Tes Res Acc Combat Hostiles Destroyed 130 | . 9 18 . 6 27 . . 10 3 . 4 . 5 14 2 6 11 . . . 7 8 Guns 63 | . 9 10 . 4 27 . . 9 . . . . . 3 . . 1 . . . . . Cannons 28 | . . 7 . . . . . 1 1 . 4 . 4 6 2 2 . . . . . 1 AOE 27 | . . . . . . . . . . . . . . . . 4 9 . . . 7 7 Classes Destroyed 18 | 2 4 2 . 5 2 . . . . . . . . . . . 3 . . . . . Worker 23 | . 6 . . 3 . . . 7 4 . . . . 2 . . . . . . . 1 Builder 10 | . . . . 1 3 . . 2 . . . . . . . . . . . . . 4 Tunneler 4 | 3 . . . . . . . 1 . . . . . . . . . . . . . . Hauler 2 | . 1 . . . . . . . . . . . . 1 . . . . . . . . Recycler 14 | 1 3 . . 5 . . . 2 . . . . . 3 . . . . . . . . Operator 11 | . . . . 1 2 . 8 . . . . . . . . . . . . . . . Watcher 10 | . 2 . . . 1 . . 4 1 . . . . 1 . . . . . . . 1 Swarmer 31 | . . 4 . . 4 . . 2 . . . . . . . 6 1 . . . 7 7 Saboteur 3 | . . . . . . . . . . . . . . . . . 3 . . . . . Grunt 36 | . 9 4 . . 13 . . 3 1 . . . . 3 1 . 2 . . . . . Brawler 1 | . . . . . . . . . . . . . . . . . 1 . . . . . Protector 1 | . . . . . . . . . . . . . . . . . 1 . . . . . Sentry 18 | . . . . 1 8 . . 2 2 . 1 . . 3 1 . . . . . . . Hunter 9 | . . . . 2 . . . . . . 1 . 4 2 . . . . . . . . Programmer 16 | . . . . 3 . . . 2 . . 1 . 1 6 . . 2 . . . . 1 Behemoth 2 | . . . . . 1 . . . . . . . . . . . 1 . . . . . Lightning 1 | . . . . . . . . 1 . . . . . . . . . . . . . . Subdweller 10 | . . 10 . . . . . . . . . . . . . . . . . . . . Decomposer 4 | . . . . . . . . . . . . . . . 4 . . . . . . . Thug 1 | . . . . . . . . . . . 1 . . . . . . . . . . . Butcher 1 | . . . . . 1 . . . . . . . . . . . . . . . . . Best Kill Streak 9 | 2 4 3 . 5 5 . 2 5 4 . 2 . 2 3 1 5 4 . . . 4 9 Combat Bots Only 5 | . 2 3 . 2 5 . . 3 1 . 2 . 2 2 1 5 4 . . . 4 5 Max Kills in Single Turn 4 | 1 1 1 . 2 3 1 1 3 2 . 1 . 1 1 1 4 3 . . . 4 3 Gunslinging 1 | . . . . . 1 . . . . . . . . . . . . . . . . . Exploded 4 | . . . . . . . . . . . . . . . . 4 3 . . . 4 2 Melee . | . . . . . . . . . . . . . . . . . . . . . . . Uniques/NPCs Destroyed 1 | . . . . . . 1 . . . . . . . . . . . . . . . . A7 (-6/Cetus) Combat | -11 -10 -10 -8 -6 -6 -6 -6 -6 -5 -5 -5 -5 -4 -4 -4 -4 -4 -3 -3 -3 -2 -1 -------- Run | Yrd Mat Sub Scr Fac Ext Cet Arc Hub Fac Upp Upp Zhi Pro Fac Upp Upp War Pro Res Tes Res Acc Hostile Shots Fired 825 | . 36 109 . 61 198 8 . 118 8 . 15 . 57 104 46 5 21 . 3 10 3 23 Missed 309 | . 7 30 . 28 68 3 . 32 3 . 7 . 21 50 24 2 16 . 1 3 2 12 Hits 516 | . 29 79 . 33 130 5 . 86 5 . 8 . 36 54 22 3 5 . 2 7 1 11 Projectile 516 | . 29 79 . 33 130 5 . 86 5 . 8 . 36 54 22 3 5 . 2 7 1 11 AOE 2 | . . . . . . . . 1 . . . . . 1 . . . . . . . . Critical Strikes 31 | . . 4 . 3 5 1 . 9 . . . . 2 4 2 . . . . . . 1 Part Disruptions 3 | . . . . . . . . 1 . . . . . . 2 . . . . . . . Damage Taken 9931 | . 392 1347 . 366 1442 191 . 3281 72 . 111 . 388 888 364 30 201 . 140 163 134 421 Core 983 | . 35 191 . 26 208 29 . 328 . . . . 20 88 9 . . . . . . 49 Absorbed by Shields 988 | . . . . . 231 37 . . 26 . 40 . 116 290 144 11 71 . . . . 22 Redirected to Shielding 9 | . . . . . . . . . . . . . . . . . 9 . . . . . Ignored by Resistances 5 | . . . . . . . . . 5 . . . . . . . . . . . . . Regen/Repaired (Parts) 1173 | . . . . . . 24 147 26 268 57 18 13 127 224 49 . 147 . 73 . . . Core Remaining (%) 76 | 100 . . 9 . . . . 30 . . . . 98 . . . . 82 . 100 100 96 Volleys Fired 658 | 14 77 73 . 66 75 6 . 53 20 . 9 . 14 81 37 7 33 . 7 44 6 36 Largest 3 | 2 2 2 . 3 3 2 . 3 1 . 3 . 3 3 3 2 2 . 1 1 1 1 Hottest 240 | 70 70 110 . 130 185 240 . 160 70 . 135 . 151 193 193 105 140 . 105 130 130 130 Shots Fired 1234 | 28 154 138 . 141 207 9 1 135 20 . 27 . 31 160 45 9 36 . 7 44 6 36 Gun 764 | 28 154 108 . 108 206 2 1 111 . . . . . 24 . . 20 . 2 . . . Cannon 425 | . . 26 . 25 . . . 24 20 . 27 . 31 136 45 8 5 . 5 44 2 27 Launcher 39 | . . . . 8 . 6 . . . . . . . . . 1 11 . . . 4 9 Special 6 | . . 4 . . 1 1 . . . . . . . . . . . . . . . . Kinetic 680 | 14 77 73 . 98 114 1 1 111 6 . 27 . 23 98 12 6 17 . 2 . . . Thermal 436 | 10 77 65 . 35 92 1 . 24 . . . . . 25 22 2 5 . 5 44 2 27 Explosive 25 | . . . . . . . . . . . . . . . . 1 11 . . . 4 9 Electromagnetic 88 | 4 . . . 8 . 6 . . 14 . . . 8 37 11 . . . . . . . Entropic 3 | . . . . . . . . . . . . . . . . . 3 . . . . . Robot Hit Streak 27 | 4 27 9 . 10 12 2 . 13 10 . 19 . 6 10 8 3 8 . 10 11 . 3 Robot Miss Streak 8 | 3 3 4 . 7 6 1 . 5 2 . 7 . 8 7 2 6 1 . . . . 1 Penetration Max 1 | . . . . . 1 . . 1 1 . . . . 1 . . . . . . . . Secondary Targets 7 | . . 1 . . 4 . . 2 . . . . . . . . . . . . . . Max Gunslinging Chain 1 | . . 1 . . 1 . . 1 . . . . . . . . . . . . . . Shots Hit Robots 749 | 16 107 85 . 69 161 15 16 63 12 . 22 . 22 110 24 4 16 . 2 1 . 4 Core Hits 459 | 5 44 27 . 36 103 9 5 32 5 . 22 . 20 61 14 8 34 . 1 1 10 22 Critical Kills 11 | . 1 1 . . 1 . . 6 . . . . . 1 . . 1 . . . . . Critical Parts Destroyed 15 | . . . . . 2 . . 8 . . . . . 1 . . 4 . . . . . Critical Strikes 44 | 1 5 2 . 2 3 1 . 14 . . 2 . 4 5 . . 5 . . . . . Burn 7 | 1 4 . . 2 . . . . . . . . . . . . . . . . . . Meltdown 3 | . . 1 . . . . . 1 . . . . . . . . 1 . . . . . Destroy 23 | . 1 . . . 3 . . 13 . . . . . 2 . . 4 . . . . . Blast 6 | . . 1 . . . . . . . . 2 . 3 . . . . . . . . . Corrupt 4 | . . . . . . . . . . . . . 1 3 . . . . . . . . Sever 1 | . . . . . . 1 . . . . . . . . . . . . . . . . Melee Attacks 38 | . . . . . 9 12 17 . . . . . . . . . . . . . . . Impact . | . . . . . . . . . . . . . . . . . . . . . . . Slashing 38 | . . . . . 9 12 17 . . . . . . . . . . . . . . . Piercing . | . . . . . . . . . . . . . . . . . . . . . . . Sneak Attacks 27 | . . . . . 4 12 11 . . . . . . . . . . . . . . . Combat Hostiles . | . . . . . . . . . . . . . . . . . . . . . . . Follow-up Attacks . | . . . . . . . . . . . . . . . . . . . . . . . Damage Inflicted 24325 | 168 1120 1577 . 1499 3614 1144 1318 2508 801 . 502 . 530 3043 861 468 2591 . 51 38 984 1508 Guns 9622 | 168 1120 1103 . 1175 3234 . . 1890 . . . . . 580 . . 301 . 51 . . . Cannons 6412 | . . 474 . . . . . 400 732 . 502 . 530 2458 861 68 140 . . 38 . 209 Explosions 5706 | . . . . 324 . 385 . 212 . . . . . . . 400 2145 . . . 984 1256 Melee 2457 | . . . . . 380 759 1318 . . . . . . . . . . . . . . . Ramming 128 | . . . . . . . . 6 69 . . . . 5 . . 5 . . . . 43 Kinetic 8620 | 53 423 789 . 795 1517 . . 1890 . . 502 . 320 1610 301 68 301 . 51 . . . Thermal 4762 | 75 697 788 . 380 1717 . . 400 . . . . . 242 76 . 140 . . 38 . 209 Explosive 4785 | . . . . . . . . . . . . . . . . 400 2145 . . . 984 1256 Electromagnetic 3573 | 40 . . . 324 . 385 . 212 732 . . . 210 1186 484 . . . . . . . Impact . | . . . . . . . . . . . . . . . . . . . . . . . Slashing 2457 | . . . . . 380 759 1318 . . . . . . . . . . . . . . . Piercing . | . . . . . . . . . . . . . . . . . . . . . . . Highest Corruption 60 | . 1 1 . 9 9 9 10 60 . . . . . 6 6 6 6 . . . . 1 Average Corruption 5 | . 1 1 . 2 7 9 6 30 . . . . . 5 6 6 6 . . . . 1 Corruption Purged 23 | . . . . . 4 . 19 . . . . . . . . . . . . . . . Corruption Blocked . | . . . . . . . . . . . . . . . . . . . . . . . Effects 189 | . 2 9 . 5 54 17 8 15 . . . . . 30 35 12 . . . . . 2 Message Errors 46 | . . 1 . 1 18 6 1 2 . . . . . 5 9 3 . . . . . . Matter Fused 39 | . 1 3 . . 11 1 1 3 . . . . . 7 9 3 . . . . . . Heat Flow Errors 22 | . . . . 2 1 1 1 2 . . . . . 8 5 1 . . . . . 1 Energy Discharges 17 | . . . . . 5 4 . 1 . . . . . . 5 1 . . . . . 1 Parts Fused 2 | . . . . . . 1 . . . . . . . . 1 . . . . . . . Data Loss (minor) 27 | . 1 2 . 1 11 2 2 1 . . . . . 2 5 . . . . . . . Data Loss (major) 7 | . . 1 . . . 1 2 . . . . . . 2 . 1 . . . . . . Misfires 9 | . . . . . 2 1 1 1 . . . . . 3 . 1 . . . . . . Alerts 5 | . . 2 . . 2 . . . . . . . . 1 . . . . . . . . Misdirections 1 | . . . . . . . . 1 . . . . . . . . . . . . . . Weapon Failures 14 | . . . . 1 4 . . 4 . . . . . 2 1 2 . . . . . . Overload Shots 1 | . . . . . . 1 . . . . . . . . . . . . . . . . Overflow Damage 1539 | . . . . 13 260 1 521 81 181 . 2 . . 18 122 47 31 . . . 71 191 Projectiles 405 | . . . . . . . . . 177 . 2 . . 18 122 5 . . . . . 81 Explosions 321 | . . . . 13 . 1 . 81 . . . . . . . 42 31 . . . 71 82 Melee 813 | . . . . . 260 . 521 . 4 . . . . . . . . . . . . 28 Knockbacks 31 | . . 1 . . . . . . 1 . 4 . 4 17 . 3 . . . . . 1 Impact 2 | . . . . . . . . . 1 . . . . . . . . . . . . 1 Kinetic 29 | . . 1 . . . . . . . . 4 . 4 17 . 3 . . . . . . Secondary . | . . . . . . . . . . . . . . . . . . . . . . . Self-Inflicted Damage 276 | . . . . 3 . . . 93 . . . . . . . . . . . . . 180 Shots 5 | . . . . 1 . . . 1 . . . . . . . . . . . . . 3 Rammed . | . . . . . . . . . . . . . . . . . . . . . . . Targets Rammed 9 | . . . . . . . . 2 4 . . . . 1 . . 1 . . . . 1 Kicked 9 | . . . . . . . . 2 4 . . . . 1 . . 1 . . . . 1 Crushed . | . . . . . . . . . . . . . . . . . . . . . . . Highest Temperature 542 | 130 216 303 . 307 542 108 83 193 108 . 302 . 255 242 336 221 214 . 76 216 48 168 Average Temperature 68 | 49 55 36 . 77 58 66 47 63 29 . 126 . 118 58 102 58 84 . 34 64 26 49 Received Heat Transfer 2357 | . 219 741 . 36 1137 31 . 63 24 . . . . 49 36 . 6 . 9 . . 6 Effects 8 | . . . . . 6 . . . . . . . 1 1 . . . . . . . . Shutdowns 1 | . . . . . 1 . . . . . . . . . . . . . . . . . Energy Bleed 1 | . . . . . . . . . . . . . 1 . . . . . . . . . Interference 4 | . . . . . 3 . . . . . . . . 1 . . . . . . . . Damage (minor) 1 | . . . . . 1 . . . . . . . . . . . . . . . . . Damage (major) 1 | . . . . . 1 . . . . . . . . . . . . . . . . . Siege Activations . | . . . . . . . . . . . . . . . . . . . . . . . Martial Activations . | . . . . . . . . . . . . . . . . . . . . . . . Shielding Activations . | . . . . . . . . . . . . . . . . . . . . . . . Robots Disrupted . | . . . . . . . . . . . . . . . . . . . . . . . Combat Hostiles . | . . . . . . . . . . . . . . . . . . . . . . . Robots Corrupted 13 | . . . . 2 . . . . 3 . . . 1 6 . . . . . . . 1 Combat Hostiles 10 | . . . . 2 . . . . 2 . . . 1 5 . . . . . . . . Parts Fried 27 | . . . . 2 . . . . 5 . . . . 17 3 . . . . . . . Impact Corruptions 3 | . . . . . . . . . 1 . . . . . . . . . . . . 2 Robots Melted 3 | . . 1 . . . . . 1 . . . . . . . . 1 . . . . . Combat Hostiles 2 | . . 1 . . . . . . . . . . . . . . 1 . . . . . Parts Melted 17 | 1 4 3 . 1 3 . . 5 . . . . . . . . . . . . . . Heat Transferred 10220 | 296 2368 1471 . 992 3912 . . 600 . . . . . 222 74 . 148 . . 37 . 100 Parts Sabotaged . | . . . . . . . . . . . . . . . . . . . . . . . Parts Stolen . | . . . . . . . . . . . . . . . . . . . . . . . Parts Stripped . | . . . . . . . . . . . . . . . . . . . . . . . Power Chain Reactions . | . . . . . . . . . . . . . . . . . . . . . . . Alert | -11 -10 -10 -8 -6 -6 -6 -6 -6 -5 -5 -5 -5 -4 -4 -4 -4 -4 -3 -3 -3 -2 -1 ------- Run | Yrd Mat Sub Scr Fac Ext Cet Arc Hub Fac Upp Upp Zhi Pro Fac Upp Upp War Pro Res Tes Res Acc Maximum Alert Level 3 | . . . . . 3 2 1 2 1 . . . . 1 . . . . . 1 2 2 Low Security (%) 66 | 100 100 . . 100 71 . 51 3 31 . . . . 83 . . . . 100 92 11 44 Level 1 16 | . . . . . 16 6 48 13 68 . . . . 16 . . . . . 7 76 24 Level 2 17 | . . . . . 9 93 . 83 . . . . . . . . . . . . 12 30 Level 3 . | . . . . . 3 . . . . . . . . . . . . . . . . . Level 4 . | . . . . . . . . . . . . . . . . . . . . . . . Level 5 . | . . . . . . . . . . . . . . . . . . . . . . . High Security . | . . . . . . . . . . . . . . . . . . . . . . . Max Security . | . . . . . . . . . . . . . . . . . . . . . . . Peak Influence 718 | 10 69 . . 79 718 548 280 617 272 . . . . 252 . . . . 46 249 422 591 Initial 398 | . . . . . 14 398 183 25 238 . . . . . . . . . . . 54 206 Average 162 | 1 18 . . 10 140 466 188 433 218 . . . . 124 . . . . 3 53 326 307 Influence Increases 7917 | 20 332 195 . 285 1387 362 257 1449 207 . 90 . 145 691 85 145 325 . 108 587 528 719 Destroy 0b10 Robot/C 3700 | . 180 160 . 120 780 160 80 400 60 . 80 . 100 280 40 120 200 . 20 320 240 360 Destroy 0b10 Robot/NC 430 | 20 60 . . 50 30 10 40 90 25 . . . . 35 . . 5 . 5 15 5 40 Destroy Leader 610 | . 36 20 . 50 72 . . 100 22 . 10 . 30 84 . 10 . . 12 56 42 66 Allied During Kill 1138 | . . . . . 439 170 120 370 . . . . . . . . . . 1 16 12 10 Successful Hack 279 | . 11 . . . 33 . . 11 54 . . . . 26 . . . . 45 71 28 . Disable Machine 495 | . . . . 45 . 15 15 270 . . . . . 60 . . . . 15 30 30 15 Destroy Structure 650 | . . . . 20 18 7 2 133 16 . . . . 56 . . . . 10 64 126 198 Lose Combat Pursuer 615 | . 45 15 . . 15 . . 75 30 . . . 15 150 45 15 120 . . 15 45 30 Influence Decreases 7372 | 20 332 195 . 254 706 616 641 1037 494 199 80 10 145 441 335 145 152 173 108 490 281 518 Entered New Map 1434 | . . . . . 17 314 275 49 248 74 . 10 . . 93 . . 173 . . 43 138 Time Decay 4876 | 20 332 145 . 244 479 222 286 563 246 125 80 . 145 421 235 145 152 . 108 340 238 350 Lost Part 257 | . . 50 . 10 30 . . 130 . . . . . 20 7 . . . . . . 10 Lost Ally 480 | . . . . . 180 80 80 120 . . . . . . . . . . . . . 20 Purge Threat 325 | . . . . . . . . 175 . . . . . . . . . . . 150 . . Squads Dispatched 31 | . 1 . . 4 5 . . 2 2 . . . . 8 . . . . 2 3 1 3 Investigation 4 | . 1 . . . 3 . . . . . . . . . . . . . . . . . Extermination 16 | . . . . 3 . . . 2 . . . . . 5 . . . . . 2 1 3 Reinforcement 10 | . . . . 1 2 . . . 2 . . . . 2 . . . . 2 1 . . Assault . | . . . . . . . . . . . . . . . . . . . . . . . Garrison 1 | . . . . . . . . . . . . . . 1 . . . . . . . . Intercept . | . . . . . . . . . . . . . . . . . . . . . . . Searches Triggered . | . . . . . . . . . . . . . . . . . . . . . . . Construction Impeded 2 | . . . . . 1 . . . . . . . . 1 . . . . . . . . Haulers Reinforced 1 | . . . . . . . . . . . . . . . . . . . 1 . . . Active Scanning Responses . | . . . . . . . . . . . . . . . . . . . . . . . Cargo Convoy Interrupts . | . . . . . . . . . . . . . . . . . . . . . . . Stealth | -11 -10 -10 -8 -6 -6 -6 -6 -6 -5 -5 -5 -5 -4 -4 -4 -4 -4 -3 -3 -3 -2 -1 --------- Run | Yrd Mat Sub Scr Fac Ext Cet Arc Hub Fac Upp Upp Zhi Pro Fac Upp Upp War Pro Res Tes Res Acc Distress Signals 16 | . 2 . . . . 2 . 2 . . . . . 4 . . 2 . 4 . . . Communications Jammed 30 | . . . . . . . . . . . . . . 2 . . . . . 10 . 18 Distress Signals 28 | . . . . . . . . . . . . . . . . . . . . 10 . 18 Times Spotted 256 | . 20 18 . 8 38 9 14 34 9 . 3 . 6 27 5 3 20 . 3 16 6 17 Peak Tracking Total 9 | . 4 2 . 2 6 5 1 6 5 . 1 . 2 5 1 1 9 . 1 3 3 3 Tactical Retreats 27 | . 2 1 . . 1 . . 2 1 . . . 1 6 3 1 4 . . 1 2 2 Traps | -11 -10 -10 -8 -6 -6 -6 -6 -6 -5 -5 -5 -5 -4 -4 -4 -4 -4 -3 -3 -3 -2 -1 ------- Run | Yrd Mat Sub Scr Fac Ext Cet Arc Hub Fac Upp Upp Zhi Pro Fac Upp Upp War Pro Res Tes Res Acc Traps Triggered 14 | . 2 . . . 5 . . 2 . . . . . 1 1 . . . 1 1 1 . Indirectly . | . . . . . . . . . . . . . . . . . . . . . . . Trap Hack Attempts . | . . . . . . . . . . . . . . . . . . . . . . . Triggered . | . . . . . . . . . . . . . . . . . . . . . . . Disarmed . | . . . . . . . . . . . . . . . . . . . . . . . Reprogrammed . | . . . . . . . . . . . . . . . . . . . . . . . Reused . | . . . . . . . . . . . . . . . . . . . . . . . Traps Extracted . | . . . . . . . . . . . . . . . . . . . . . . . Installed . | . . . . . . . . . . . . . . . . . . . . . . . Triggered . | . . . . . . . . . . . . . . . . . . . . . . . Machines | -11 -10 -10 -8 -6 -6 -6 -6 -6 -5 -5 -5 -5 -4 -4 -4 -4 -4 -3 -3 -3 -2 -1 ---------- Run | Yrd Mat Sub Scr Fac Ext Cet Arc Hub Fac Upp Upp Zhi Pro Fac Upp Upp War Pro Res Tes Res Acc Machines Disabled 36 | . . . . 3 . 1 1 18 . . . . 1 4 . . 2 . 1 2 2 1 Max in Single Turn 2 | . . . . 1 . 1 . 2 . . . . 1 1 . . 1 . 1 1 2 1 Garrison Access 3 | . . . . . . . . 1 . . . . . 1 . . . . . . 1 . Network Hub 2 | . . . . . . . . 2 . . . . . . . . . . . . . . Machines Repaired . | . . . . . . . . . . . . . . . . . . . . . . . Machines Dismantled . | . . . . . . . . . . . . . . . . . . . . . . . Machines Sabotaged . | . . . . . . . . . . . . . . . . . . . . . . . Overloaded Fab Kills . | . . . . . . . . . . . . . . . . . . . . . . . Hacking | -11 -10 -10 -8 -6 -6 -6 -6 -6 -5 -5 -5 -5 -4 -4 -4 -4 -4 -3 -3 -3 -2 -1 --------- Run | Yrd Mat Sub Scr Fac Ext Cet Arc Hub Fac Upp Upp Zhi Pro Fac Upp Upp War Pro Res Tes Res Acc Machines Accessed 59 | . 8 1 3 2 9 1 . 7 1 . 1 4 . 5 . . 2 . 5 7 2 1 Terminals 38 | . 6 . . 2 9 1 . 6 1 . . . . 2 . . . . 4 6 1 . Fabricators 1 | . . . . . . . . . . . . . . 1 . . . . . . . . Repair Stations 2 | . . . . . . . . . . . . . . 1 . . . . 1 . . . Recycling Units 2 | . 2 . . . . . . . . . . . . . . . . . . . . . Scanalyzers 1 | . . . . . . . . . . . . . . . . . . . . 1 . . Garrison Access 4 | . . . . . . . . 1 . . . . . 1 . . . . . . 1 1 Total Hacks 182 | . 26 5 5 4 17 2 . 22 9 . 1 17 . 14 . . 7 . 22 20 9 2 Successful 95 | . 13 5 5 1 5 . . 12 4 . 1 17 . 7 . . 7 . 8 6 4 . Failed 87 | . 13 . . 3 12 2 . 10 5 . . . . 7 . . . . 14 14 5 2 Catastrophic 22 | . 1 . . . 4 . . 4 1 . . . . 1 . . . . 2 5 3 1 Database Lockouts . | . . . . . . . . . . . . . . . . . . . . . . . Manual 59 | . 17 . . 4 1 1 . 12 3 . . . . 4 . . . . 8 3 6 . Terminals 119 | . 20 . . 4 17 2 . 20 9 . . . . 9 . . . . 14 17 7 . Fabricators 1 | . . . . . . . . . . . . . . 1 . . . . . . . . Repair Stations 10 | . . . . . . . . . . . . . . 2 . . . . 8 . . . Recycling Units 6 | . 6 . . . . . . . . . . . . . . . . . . . . . Scanalyzers 3 | . . . . . . . . . . . . . . . . . . . . 3 . . Garrison Access 8 | . . . . . . . . 2 . . . . . 2 . . . . . . 2 2 Terminal Hacks 64 | . 4 5 5 . 5 . . 7 3 . 1 17 . 2 . . 7 . 2 5 1 . Record 14 | . . 5 4 . . . . . . . . 5 . . . . . . . . . . Part Schematic 4 | . . . . . . . . . . . . 4 . . . . . . . . . . Robot Analysis 5 | . 1 . . . . . . . . . . 4 . . . . . . . . . . Prototype ID Bank 10 | . . . . . . . . . . . . 4 . . . . 6 . . . . . Open Door 7 | . . . . . 5 . . . . . 1 . . . . . 1 . . . . . Level Access Points 1 | . . . . . . . . . 1 . . . . . . . . . . . . . Branch Access Points 3 | . . . . . . . . . 1 . . . . 1 . . . . 1 . . . Emergency Access Points 2 | . . . . . . . . 1 . . . . . . . . . . . 1 . . Machine Index 1 | . . . . . . . . . . . . . . . . . . . . . 1 . Terminal Index 3 | . 1 . . . . . . 1 . . . . . . . . . . . 1 . . Alert Level 1 | . . . . . . . . 1 . . . . . . . . . . . . . . Unreport Threat 3 | . . . . . . . . 2 . . . . . . . . . . . 1 . . Locate Traps 3 | . 1 . . . . . . . . . . . . . . . . . 1 1 . . Recall Extermination 1 | . . . . . . . . . . . . . . 1 . . . . . . . . Hauler Manifests 1 | . 1 . . . . . . . . . . . . . . . . . . . . . Zone Layout 4 | . . . . . . . . 2 1 . . . . . . . . . . 1 . . Proto ID Catalog 1 | . . . 1 . . . . . . . . . . . . . . . . . . . Fabricator Hacks 1 | . . . . . . . . . . . . . . 1 . . . . . . . . Network Status 1 | . . . . . . . . . . . . . . 1 . . . . . . . . Repair Station Hacks 5 | . . . . . . . . . . . . . . 2 . . . . 3 . . . Scan Component 3 | . . . . . . . . . . . . . . 1 . . . . 2 . . . Repair 2 | . . . . . . . . . . . . . . 1 . . . . 1 . . . Recycling Unit Hacks 2 | . 2 . . . . . . . . . . . . . . . . . . . . . Retrieve Components 2 | . 2 . . . . . . . . . . . . . . . . . . . . . Scanalyzer 1 | . . . . . . . . . . . . . . . . . . . . 1 . . Retrieve Study 1 | . . . . . . . . . . . . . . . . . . . . 1 . . Garrison Access Hacks 3 | . . . . . . . . 1 . . . . . 1 . . . . . . 1 . Seal Access 3 | . . . . . . . . 1 . . . . . 1 . . . . . . 1 . Unauthorized Hacks 19 | . 7 . . 1 . . . 4 1 . . . . 1 . . . . 3 . 2 . Terminals 19 | . 7 . . 1 . . . 4 1 . . . . 1 . . . . 3 . 2 . Track 1 | . . . . . . . . 1 . . . . . . . . . . . . . . Assimilate 2 | . . . . . . . . 1 . . . . . . . . . . 1 . . . Botnet 8 | . 2 . . 1 . . . 1 1 . . . . 1 . . . . 1 . 1 . Operators 4 | . 1 . . . . . . 1 . . . . . . . . . . 1 . 1 . Skim 4 | . 4 . . . . . . . . . . . . . . . . . . . . . Fabricators . | . . . . . . . . . . . . . . . . . . . . . . . Repair Stations . | . . . . . . . . . . . . . . . . . . . . . . . Recycling Units . | . . . . . . . . . . . . . . . . . . . . . . . Scanalyzers . | . . . . . . . . . . . . . . . . . . . . . . . Garrison Access . | . . . . . . . . . . . . . . . . . . . . . . . Data Cores Recovered 2 | . . . . 1 1 . . . . . . . . . . . . . . . . . Used . | . . . . . . . . . . . . . . . . . . . . . . . Hacking Detections 38 | . 7 . . 2 7 1 . 7 1 . . . . 1 . . . . 4 6 1 1 Full Trace Events 2 | . . . . . 2 . . . . . . . . . . . . . . . . . Feedback Events . | . . . . . . . . . . . . . . . . . . . . . . . Feedback Blocked . | . . . . . . . . . . . . . . . . . . . . . . . Robot Schematics Acquired . | . . . . . . . . . . . . . . . . . . . . . . . Robots Built . | . . . . . . . . . . . . . . . . . . . . . . . Authchips . | . . . . . . . . . . . . . . . . . . . . . . . Time . | . . . . . . . . . . . . . . . . . . . . . . . Total Robot Build Rating . | . . . . . . . . . . . . . . . . . . . . . . . Part Schematics Acquired 4 | . . . . . . . . . . . . 4 . . . . . . . . . . Parts Built . | . . . . . . . . . . . . . . . . . . . . . . . Authchips . | . . . . . . . . . . . . . . . . . . . . . . . Time . | . . . . . . . . . . . . . . . . . . . . . . . Total Part Build Rating . | . . . . . . . . . . . . . . . . . . . . . . . Part Studies Acquired 1 | . . . . . . . . . . . . . . . . . . . . 1 . . Parts Repaired 2 | . . . . . . . . . . . . . . 1 . . . . 1 . . . Time 106 | . . . . . . . . . . . . . . 44 . . . . 62 . . . Parts Recycled . | . . . . . . . . . . . . . . . . . . . . . . . Recycled Matter . | . . . . . . . . . . . . . . . . . . . . . . . Retrieved Matter . | . . . . . . . . . . . . . . . . . . . . . . . Retrieved Components 13 | . 13 . . . . . . . . . . . . . . . . . . . . . Parts Scanalyzed . | . . . . . . . . . . . . . . . . . . . . . . . Part Schematics Acquired . | . . . . . . . . . . . . . . . . . . . . . . . Parts Damaged . | . . . . . . . . . . . . . . . . . . . . . . . Bothacking | -11 -10 -10 -8 -6 -6 -6 -6 -6 -5 -5 -5 -5 -4 -4 -4 -4 -4 -3 -3 -3 -2 -1 ------------ Run | Yrd Mat Sub Scr Fac Ext Cet Arc Hub Fac Upp Upp Zhi Pro Fac Upp Upp War Pro Res Tes Res Acc Used RIF Installer . | . . . . . . . . . . . . . . . . . . . . . . . Robots Hacked . | . . . . . . . . . . . . . . . . . . . . . . . Non-combat . | . . . . . . . . . . . . . . . . . . . . . . . Combat . | . . . . . . . . . . . . . . . . . . . . . . . Robot Hacks Applied . | . . . . . . . . . . . . . . . . . . . . . . . Relay Couplers Released 3 | . . . . . . . . . . . . . . . . . . . . 3 . . Programmers 3 | . . . . . . . . . . . . . . . . . . . . 3 . . Fabnet Peak Effective % . | . . . . . . . . . . . . . . . . . . . . . . . Robots Rewired 18 | . . . . . 18 . . . . . . . . . . . . . . . . . Allies Hacked . | . . . . . . . . . . . . . . . . . . . . . . . Hacks Repelled . | . . . . . . . . . . . . . . . . . . . . . . . Allies | -11 -10 -10 -8 -6 -6 -6 -6 -6 -5 -5 -5 -5 -4 -4 -4 -4 -4 -3 -3 -3 -2 -1 -------- Run | Yrd Mat Sub Scr Fac Ext Cet Arc Hub Fac Upp Upp Zhi Pro Fac Upp Upp War Pro Res Tes Res Acc Total Allies 29 | . . . . . 24 5 . . . . . . . . . . . . . . . . Largest Group 15 | . . . . . 14 15 13 9 . . . . . . . . . . . . . . Highest-Rated Group 843 | . . . . . 509 843 681 590 . . . . . . . . . . . . . . Highest-Rated Ally 159 | . . . . . 159 159 96 96 . . . . . . . . . . . . . . Total Orders 83 | . . . . . . 9 . 20 . . . . . . . . . . 3 21 9 21 STAY 29 | . . . . . . 3 . 12 . . . . . . . . . . 1 5 4 4 ROAM 2 | . . . . . . . . 1 . . . . . . . . . . . 1 . . FOLLOW 17 | . . . . . . 6 . 7 . . . . . . . . . . . 2 . 2 RETURN 35 | . . . . . . . . . . . . . . . . . . . 2 13 5 15 Ally Attacks 334 | . . . . . 97 51 27 87 . . . . . . . . . . 4 31 13 24 Total Damage 15358 | . . . . . 2504 1417 889 2509 . . . . . . . . . . 833 3313 1407 2486 Kills 78 | . . . . . 12 10 4 13 . . . . . . . . . . 2 19 6 12 Allies Corrupted 6 | . . . . . . . . 5 . . . . . . . . . . . . . 1 Allies Melted 1 | . . . . . 1 . . . . . . . . . . . . . . . . . Intel | -11 -10 -10 -8 -6 -6 -6 -6 -6 -5 -5 -5 -5 -4 -4 -4 -4 -4 -3 -3 -3 -2 -1 ------- Run | Yrd Mat Sub Scr Fac Ext Cet Arc Hub Fac Upp Upp Zhi Pro Fac Upp Upp War Pro Res Tes Res Acc Active Infowar (turns) 20494 | 38 1157 1261 3328 1553 1035 . 267 1364 537 396 356 192 699 1992 1141 368 1633 94 836 987 504 756 Sensors 13545 | . . . . 1298 1035 . 52 1364 529 396 340 179 567 1737 981 338 1633 94 836 926 484 756 Terrain 1669 | . . . . . . . . . . . . . . . . . . . 1 409 503 756 Seismic 12967 | 38 1157 1261 3328 1540 34 . 215 . 537 396 354 192 675 1174 602 368 1096 . . . . . Decoding 2 | . . . . . . . . . . 2 . . . . . . . . . . . . Jamming 3981 | . . . . . . . . . . . . 1 107 1222 705 19 2 94 8 563 504 756 ECM 128 | . . . . . . . . . 5 123 . . . . . . . . . . . . Robot Analysis Total 5 | . 1 . . . . . . . . . . 4 . . . . . . . . . . Derelict Logs Recovered 11 | . . 1 4 . . . . . . 1 1 . 1 . 2 1 . . . . . . Drone Launches 33 | . . . . . . . . . . . . . . . . . . . 2 12 5 14 Drone Recoveries 32 | . . . . . . . . . . . . . . . . . . . 2 12 5 13 Exploration | -11 -10 -10 -8 -6 -6 -6 -6 -6 -5 -5 -5 -5 -4 -4 -4 -4 -4 -3 -3 -3 -2 -1 ------------- Run | Yrd Mat Sub Scr Fac Ext Cet Arc Hub Fac Upp Upp Zhi Pro Fac Upp Upp War Pro Res Tes Res Acc Turns Passed 23647 | 170 1715 1628 3329 1604 1717 464 631 1813 537 396 369 192 710 2002 1141 368 1633 94 863 987 504 780 Spaces Moved 14298 | 74 836 871 1461 854 814 263 396 1062 389 344 276 155 547 1352 763 286 1255 72 723 612 303 590 Core 78 | 6 . . . . . . . 72 . . . . . . . . . . . . . . Treads 915 | 68 836 11 . . . . . . . . . . . . . . . . . . . . Legs 12678 | . . 233 1461 854 814 263 396 990 389 344 276 155 547 1352 763 286 1255 72 723 612 303 590 Wheels 627 | . . 627 . . . . . . . . . . . . . . . . . . . . Hover . | . . . . . . . . . . . . . . . . . . . . . . . Flight . | . . . . . . . . . . . . . . . . . . . . . . . Fastest Speed 50 | 50 160 110 130 126 110 120 120 50 113 113 113 113 113 113 113 113 103 103 103 103 103 103 Average Speed 131 | 151 160 149 179 153 129 120 130 146 113 113 113 113 113 113 125 113 110 103 103 103 145 105 Slowest Speed 330 | 160 160 240 210 196 186 120 190 330 113 113 113 113 113 190 183 113 113 103 176 103 176 176 Overloaded Moves . | . . . . . . . . . . . . . . . . . . . . . . . Propulsion Burnouts . | . . . . . . . . . . . . . . . . . . . . . . . Robots Hopped . | . . . . . . . . . . . . . . . . . . . . . . . Potential Cave-ins 1 | . . . . . . . . 1 . . . . . . . . . . . . . . Cave-ins Triggered . | . . . . . . . . . . . . . . . . . . . . . . . Teleports 1 | . . . . . . . . . . . . . . 1 . . . . . . . . Exploration Rate (%) 51 | 6 99 45 84 19 79 66 89 65 11 55 49 60 69 29 70 48 87 26 19 72 13 23 Regions Visited 22 Branch Regions 15 Pre-discovered Areas 5 | . . . 2 . . . . . . . . 3 . . . . . . . . . . Known Exits Taken 15 | . . . . 1 1 1 1 1 1 . . . 1 1 1 1 1 1 1 1 1 . Unknown Exits Taken 7 | 1 1 1 1 . . . . . . 1 1 1 . . . . . . . . . . Scrap Searched 18 | . . 4 5 . . . . . . 3 1 . 2 . 2 1 . . . . . . Spaces Dug 97 | . . . . 12 5 . . 5 4 . . . 1 11 9 2 . . 4 23 2 19 Terrain Destroyed 595 | . . 1 . 18 5 2 . 207 7 . 5 . 3 27 20 13 93 . 5 38 50 101 Melee 5 | . . . . . 5 . . . . . . . . . . . . . . . . . Projectile 202 | . . 1 . 18 . 2 . 42 7 . 5 . 3 27 20 2 6 . 5 38 2 24 AOE 388 | . . . . . . . . 165 . . . . . . . 11 87 . . . 48 77 Terrain Rammed . | . . . . . . . . . . . . . . . . . . . . . . . Walls Destroyed . | . . . . . . . . . . . . . . . . . . . . . . . Machines Disabled . | . . . . . . . . . . . . . . . . . . . . . . . Actions | -11 -10 -10 -8 -6 -6 -6 -6 -6 -5 -5 -5 -5 -4 -4 -4 -4 -4 -3 -3 -3 -2 -1 --------- Run | Yrd Mat Sub Scr Fac Ext Cet Arc Hub Fac Upp Upp Zhi Pro Fac Upp Upp War Pro Res Tes Res Acc Total 18024 | 104 1085 1047 2177 1038 1298 384 481 1200 463 352 313 172 609 1693 896 321 1475 91 840 912 359 714 Wait 2003 | . 127 57 674 47 186 41 50 41 21 . 13 . 15 137 62 8 127 20 43 218 44 72 Move 14276 | 73 835 871 1460 853 813 262 395 1061 388 343 275 154 546 1351 762 285 1254 71 722 611 302 589 Hop . | . . . . . . . . . . . . . . . . . . . . . . . Pick Up 175 | 8 15 12 19 11 14 11 2 2 9 1 . 3 5 25 3 3 10 . 17 1 . 4 Fast Attach 131 | 7 2 1 1 9 8 9 6 7 10 3 8 5 7 17 5 3 8 . 11 4 . . Attach 121 | 1 5 11 2 15 13 2 1 10 5 . . . 2 21 4 5 9 . 5 . 3 7 Detach 52 | 1 5 2 . 7 9 . . 3 1 1 . . . 5 2 3 4 . 4 . 2 3 Swap 179 | . 5 17 1 16 21 18 4 12 1 . . 2 10 19 12 3 6 . 3 27 2 . Drop 248 | . 14 3 20 14 22 23 6 4 4 4 8 8 10 36 9 4 23 . 28 6 . 2 Fire 658 | 14 77 73 . 66 75 6 . 53 20 . 9 . 14 81 37 7 33 . 7 44 6 36 Melee 38 | . . . . . 9 12 17 . . . . . . . . . . . . . . . Ram . | . . . . . . . . . . . . . . . . . . . . . . . Kick 9 | . . . . . . . . 2 4 . . . . 1 . . 1 . . . . 1 Crush . | . . . . . . . . . . . . . . . . . . . . . . . Escape Stasis 15 | . . . . . 10 . . 5 . . . . . . . . . . . . . . Rewire 119 | . . . . . 118 . . . . . . . . . . . . . . 1 . . Trap . | . . . . . . . . . . . . . . . . . . . . . . . Miscellaneous . | . . . . . . . . . . . . . . . . . . . . . . . Route ------- -11/Scrapyard -10/Materials (discovered 5 exits: [*Mat x3] / [*Min] / *Sub) -10/Subcaves (discovered 2 exits: [*Mat] / Scr) -8/Scraptown (discovered 2 exits: *Fac x2) -6/Factory (discovered 2 exits: *Fac / *Ext) -6/Extension (discovered 2 exits: *Fac / *Cet) -6/Cetus (discovered 2 exits: *Fac / *Arc) -6/Archives (discovered 3 exits: *Fac / *Hub x2) -6/Hub_04(d) -5/Factory (discovered 6 exits: Fac x4 / *Upp x2) -5/Upper Caves -5/Upper Caves -5/Zhirov -4/Proximity Caves -4/Factory (discovered 4 exits: *Res / *Upp x2 / Arm) -4/Upper Caves -4/Upper Caves -4/Warlord -3/Proximity Caves -3/Research (discovered 3 exits: *Res / *Tes x2) -3/Testing -2/Research -1/Access To Epsilon Eridani History --------- Turn | Location | Event 15 | -11/Scrapyard | Discovered new exit (range 15) 171 | -11/Scrapyard | Entered Materials 224 | -10/Materials | Discovered new exit (range 9) 320 | -10/Materials | Build established: Mutant 515 | -10/Materials | Discovered new exit (range 9) 839 | -10/Materials | Discovered new exit (range 6) 972 | -10/Materials | Discovered new exit (range 12) 1297 | -10/Materials | Discovered new exit (range 5) 1886 | -10/Materials | Entered Subcaves 1887 | -10/Subcaves | Approached by a straggling Scientist 1984 | -10/Subcaves | Lost 4 parts (2n1u1w) 2233 | -10/Subcaves | Build established: Scavenger-Mutant 2290 | -10/Subcaves | Disturbed a concealed Subdweller 2380 | -10/Subcaves | Visited Clippyterm 2384 | -10/Subcaves | Learned Factory trap positions 2384 | -10/Subcaves | Learned Factory garrison access intel 2537 | -10/Subcaves | Lost 3 parts (1p1u1w) 2666 | -10/Subcaves | Core integrity fell below 50% 3133 | -10/Subcaves | Learned Materials security intel 3150 | -10/Subcaves | Discovered new exit (range 6) 3180 | -10/Subcaves | Core integrity fell below 20% 3199 | -10/Subcaves | Disturbed a concealed Subdweller 3507 | -10/Subcaves | Build established: Mutant 3514 | -10/Subcaves | Entered Scraptown 3514 | -8/Scraptown | System corruption cleaned by C-Scrubber 3762 | -8/Scraptown | Visited Junk Repository 3823 | -8/Scraptown | Visited SPCMW 3882 | -8/Scraptown | Visited Awakened 3916 | -8/Scraptown | Visited Junk Repository 4587 | -8/Scraptown | Visited CPS Storage 4682 | -8/Scraptown | Scanned Subdweller tech in exchange for log data 4686 | -8/Scraptown | Learned location of Quarantine (-2) 4688 | -8/Scraptown | Learned location of Zion (-7) 4690 | -8/Scraptown | Learned Factory trap positions 4692 | -8/Scraptown | Learned Research garrison access intel 4713 | -8/Scraptown | Discovered new exit (range 13) 5035 | -8/Scraptown | Visited UFD Registry 5035 | -8/Scraptown | Registered with UFD as "Railroller" 5135 | -8/Scraptown | Visited Scrapoid Research Area 5169 | -8/Scraptown | Visited Abandonware Association 5236 | -8/Scraptown | Learned abandonware demo "OVRCLOCK.EXE" 5240 | -8/Scraptown | Learned abandonware demo "HACKBUD.EXE" 5291 | -8/Scraptown | Visited Scrap Suit Storage 5310 | -8/Scraptown | Visited Chapter 10 5352 | -8/Scraptown | Visited Infowarlord's Domain 5379 | -8/Scraptown | Visited Observation Area 5404 | -8/Scraptown | Visited Derelict Rescue Squad 5457 | -8/Scraptown | Visited Science Guys 5524 | -8/Scraptown | Visited Curators Association 5820 | -8/Scraptown | Found Exp. Sensor Array 6769 | -8/Scraptown | Met Optimus 6769 | -8/Scraptown | Accepted into 0bPrime 6838 | -8/Scraptown | Discovered new exit (range 5) 6843 | -8/Scraptown | Entered Factory 6843 | -6/Factory | Evolved 8 slots: Propulsion x1, Utility x6, Weapon x1 6844 | -6/Factory | Loaded intel: 77 trap records 6845 | -6/Factory | Loaded intel: 4 garrison access locations 7486 | -6/Factory | Build established: Tank 7788 | -6/Factory | Discovered new exit (range 15) 7830 | -6/Factory | Build established: Scavenger-Tank 7871 | -6/Factory | Identified exit to Factory 8416 | -6/Factory | Door terminal overloaded 8416 | -6/Factory | Discovered new exit (range 16) 8443 | -6/Factory | Identified exit to Extension 8447 | -6/Factory | Entered Extension 8996 | -6/Extension | Build established: Scavenger-Mutant 9146 | -6/Extension | Rescued A7 9192 | -6/Extension | Rescued a captive Derelict 9194 | -6/Extension | Rescued a captive Derelict 9209 | -6/Extension | Rescued a captive Derelict 9512 | -6/Extension | Attached CPS modules to A7. 9526 | -6/Extension | Spotted B-75 Beast 9535 | -6/Extension | Destroyed B-75 Beast 9547 | -6/Extension | Spotted B-75 Beast 9572 | -6/Extension | Disrupted transfer network 9688 | -6/Extension | Lost 5 allies 9691 | -6/Extension | Rescued a captive Derelict 9721 | -6/Extension | Rescued a captive Derelict 9722 | -6/Extension | Rescued a captive Derelict 9808 | -6/Extension | Build established: Scavenger-Tank 10113 | -6/Extension | Discovered exit to Factory (range 10) 10114 | -6/Extension | Discovered new exit (range 6) 10123 | -6/Extension | Identified exit to Cetus 10164 | -6/Extension | Entered Cetus 10164 | -6/Cetus | Accompanied by 14 allies (A7) 10169 | -6/Cetus | Acquired a Cetus Manufacturing Module code from A7 10191 | -6/Cetus | Spotted Cetus Guard 10191 | -6/Cetus | Spotted Cetus Guard 10194 | -6/Cetus | Spotted Cetus Guard 10194 | -6/Cetus | Spotted Cetus Guard 10196 | -6/Cetus | Allies destroyed Cetus Guard 10197 | -6/Cetus | Allies destroyed Cetus Guard 10213 | -6/Cetus | Allies destroyed Cetus Guard 10215 | -6/Cetus | Allies destroyed Cetus Guard 10246 | -6/Cetus | Lost 3 allies 10344 | -6/Cetus | Started Cetus Manufacturing Module 10358 | -6/Cetus | Escorted A7 to Cetus Mainframe 10369 | -6/Cetus | Manufactured an Enhanced Grunt 10371 | -6/Cetus | Discovered new exit (range 16) 10394 | -6/Cetus | Manufactured an Enhanced Grunt 10410 | -6/Cetus | Spotted Cetus Guard 10410 | -6/Cetus | Spotted Cetus Guard 10412 | -6/Cetus | Spotted Cetus Guard 10412 | -6/Cetus | Spotted Cetus Guard 10415 | -6/Cetus | Allies destroyed Cetus Guard 10419 | -6/Cetus | Manufactured an Enhanced Grunt 10425 | -6/Cetus | Allies destroyed Cetus Guard 10430 | -6/Cetus | Allies destroyed Cetus Guard 10434 | -6/Cetus | Allies destroyed Cetus Guard 10443 | -6/Cetus | Discovered exit to Factory (range 15) 10444 | -6/Cetus | Manufactured an Enhanced Grunt 10450 | -6/Cetus | Met Revision 17 10469 | -6/Cetus | Manufactured an Enhanced Grunt 10566 | -6/Cetus | Murdered A7 10569 | -6/Cetus | Extracted ID and sensor layout for unrecognized location from A7's data core 10580 | -6/Cetus | Found Prototype Protection 10580 | -6/Cetus | Identified Med. Regenerative Plating 10603 | -6/Cetus | Identified exit to Archives 10628 | -6/Cetus | Entered Archives 10628 | -6/Archives | Accompanied by 13 allies 10692 | -6/Archives | Discovered new exit (range 15) 10700 | -6/Archives | Lost 4 allies 10749 | -6/Archives | Discovered new exit (range 13) 10820 | -6/Archives | System corruption reached 10% 10824 | -6/Archives | Discovered exit to Factory (range 15) 10955 | -6/Archives | Build established: Scavenger-Mutant 11232 | -6/Archives | Identified exit to Hub_04(d) 11259 | -6/Archives | Entered Hub_04(d) 11259 | -6/Hub_04(d) | Accompanied by 9 allies 11305 | -6/Hub_04(d) | Discovered exit to Factory (range 16) 11338 | -6/Hub_04(d) | Found Prototype Device 11338 | -6/Hub_04(d) | Identified Exp. Thermal Shield 11631 | -6/Hub_04(d) | Build established: Scavenger-Skirmisher 12814 | -6/Hub_04(d) | Network Hub disabled 12869 | -6/Hub_04(d) | Spotted Lightning 12869 | -6/Hub_04(d) | Spotted Lightning 12869 | -6/Hub_04(d) | Spotted Lightning 12869 | -6/Hub_04(d) | Spotted Lightning 12885 | -6/Hub_04(d) | Spotted Lightning 12895 | -6/Hub_04(d) | Core integrity fell below 50% 12910 | -6/Hub_04(d) | Network Hub disabled 12961 | -6/Hub_04(d) | System corruption reached 30% 12990 | -6/Hub_04(d) | Destroyed Lightning 13007 | -6/Hub_04(d) | Released all parts (9) 13033 | -6/Hub_04(d) | Lost 12 parts (1p4n3u4w) 13040 | -6/Hub_04(d) | Found Prototype Processor 13040 | -6/Hub_04(d) | Identified Exp. Targeting Computer 13049 | -6/Hub_04(d) | Found Prototype Energy Cannon 13049 | -6/Hub_04(d) | Identified EMDS 13072 | -6/Hub_04(d) | Entered Factory 13072 | -5/Factory | Evolved 2 slots: Power x1, Utility x1 13073 | -5/Factory | Loaded intel: 98 trap records 13121 | -5/Factory | Identified exit to Upper Caves 13121 | -5/Factory | Identified exit to Factory 13609 | -5/Factory | Entered Upper Caves 13754 | -5/Upper Caves | Build established: Scavenger-Gunner 13917 | -5/Upper Caves | Encountered a Warlord checkpoint 13934 | -5/Upper Caves | Learned 4 Factory zone layouts 13965 | -5/Upper Caves | Discovered new exit (range 11) 14005 | -5/Upper Caves | Entered another Upper Caves area 14094 | -5/Upper Caves | Attracted the attention of an 0b10 checkpoint 14165 | -5/Upper Caves | Encountered a Warlord checkpoint 14181 | -5/Upper Caves | P-70 Sage assimilated allied ZL-TGT(g) 14286 | -5/Upper Caves | Learned location of 1 exit from Factory 14348 | -5/Upper Caves | Discovered new exit (range 5) 14374 | -5/Upper Caves | Entered Zhirov 14374 | -5/Zhirov | Discovered new exit (range 3) 14395 | -5/Zhirov | Met Zhirov 14416 | -5/Zhirov | Learned location of Testing (-3) 14416 | -5/Zhirov | Learned location of Command (-1) 14426 | -5/Zhirov | Zhirov requested help retrieving the SGEMP Prototype 14455 | -5/Zhirov | Found Alien Artifact 14455 | -5/Zhirov | Identified Integrated Reactor 14455 | -5/Zhirov | Installed Integrated Reactor, increased core energy generation (+10) 14502 | -5/Zhirov | Found Alien Artifact 14566 | -5/Zhirov | Entered Proximity Caves 14762 | -4/Proximity Caves | Found Alien Artifact 14762 | -4/Proximity Caves | Identified Core Expander 14762 | -4/Proximity Caves | Installed Core Expander, added new Power slot 14845 | -4/Proximity Caves | Spotted B-86 Titan 14907 | -4/Proximity Caves | Found Alien Artifact 15036 | -4/Proximity Caves | Learned Research stockpile data 15162 | -4/Proximity Caves | Discovered exit to Factory (range 15) 15276 | -4/Proximity Caves | Entered Factory 15276 | -4/Factory | Evolved 2 slots: Utility x2 15277 | -4/Factory | Identified exit to Research 15374 | -4/Factory | Garrison activated, responded to threat 16137 | -4/Factory | Identified Transdimensional Reconstructor 16137 | -4/Factory | Warped through subspace 16424 | -4/Factory | Repaired Imp. Shield Generator 16757 | -4/Factory | Build established: Hacker-Tank 17122 | -4/Factory | Identified exit to Upper Caves 17122 | -4/Factory | Identified exit to Armory 17278 | -4/Factory | Entered Upper Caves 17283 | -4/Upper Caves | Learned location of 1 exit from Proximity Caves 17539 | -4/Upper Caves | Learned 4 Research zone layouts 17626 | -4/Upper Caves | Spotted B-86 Titan 18083 | -4/Upper Caves | Attracted the attention of an 0b10 checkpoint 18127 | -4/Upper Caves | Discovered new exit (range 6) 18133 | -4/Upper Caves | Identified exit to Upper Caves 18419 | -4/Upper Caves | Entered another Upper Caves area 18646 | -4/Upper Caves | Learned 4 Research zone layouts 18688 | -4/Upper Caves | Discovered new exit (range 15) 18784 | -4/Upper Caves | Identified exit to Warlord 18787 | -4/Upper Caves | Entered Warlord 18826 | -4/Warlord | System corruption cleaned by Quarantine Array 19432 | -4/Warlord | Visited the Vortex Lab 19436 | -4/Warlord | Found Prototype Energy Gun 19436 | -4/Warlord | Identified Vortex Rail 19441 | -4/Warlord | Found Vortex Rail 19445 | -4/Warlord | Found Vortex Rail 19448 | -4/Warlord | Warlord's base attacked by MAIN.C 19566 | -4/Warlord | Found Prototype Device 19566 | -4/Warlord | Identified Thermal Barrier 19650 | -4/Warlord | Found Prototype Processor 19652 | -4/Warlord | Identified Exp. Armor Integrity Analyzer 19658 | -4/Warlord | Found Prototype Reactor 19798 | -4/Warlord | Warlord forces counterattacked 19824 | -4/Warlord | Spotted B-86 Titan 19827 | -4/Warlord | Destroyed B-86 Titan 19868 | -4/Warlord | Lost 5 allies 19906 | -4/Warlord | Found Prototype Device 20017 | -4/Warlord | Lost 6 allies 20123 | -4/Warlord | Warlord base infiltrated, sounded retreat 20124 | -4/Warlord | Enhanced Grunt warped into view 20124 | -4/Warlord | Enhanced Grunt warped into view 20124 | -4/Warlord | Enhanced Grunt warped into view 20124 | -4/Warlord | Enhanced Demolisher warped into view 20124 | -4/Warlord | Enhanced Demolisher warped into view 20124 | -4/Warlord | Enhanced Demolisher warped into view 20124 | -4/Warlord | Rebuked by Warlord 20146 | -4/Warlord | Spotted Executioner 20173 | -4/Warlord | Build established: Tank 20174 | -4/Warlord | Lost 3 allies 20284 | -4/Warlord | Lost 5 allies 20338 | -4/Warlord | Discovered new exit (range 14) 20353 | -4/Warlord | Identified exit to Proximity Caves 20406 | -4/Warlord | Lost 11 allies 20420 | -4/Warlord | Entered Proximity Caves 20514 | -3/Proximity Caves | Entered Research 20514 | -3/Research | Evolved 2 slots: Utility x2 20515 | -3/Research | Identified exit to Testing 20517 | -3/Research | Loaded intel: 4 garrison access locations 20525 | -3/Research | Identified Wardrone Bay 20659 | -3/Research | Repaired Broken Adv. KE Penetrator 20714 | -3/Research | Revision forces began assault on 0b10 20800 | -3/Research | Met up with Revision 17++ 20821 | -3/Research | Build established: Mutant 20874 | -3/Research | Discovered new exit (range 16) 21214 | -3/Research | Research terminal network offline 21377 | -3/Research | Entered Testing 21612 | -3/Testing | Found Prototype Energy Cannon 21612 | -3/Testing | Identified Null Cannon 22343 | -3/Testing | Discovered new exit (range 13) 22363 | -3/Testing | Identified exit to Research 22364 | -3/Testing | Entered Research 22364 | -2/Research | Evolved 2 slots: Utility x2 22643 | -2/Research | Discovered new exit (range 22) 22717 | -2/Research | Build established: Skirmisher 22720 | -2/Research | Identified exit to Access 22868 | -2/Research | Entered Access 22868 | -1/Access | Evolved 2 slots: Utility x2 23079 | -1/Access | Build established: Mutant 23634 | -1/Access | Discovered new exit (range 8) 23644 | -1/Access | Identified exit to Surface 23648 | *** | Escaped! Last Messages --------------- 23466_ K-01 Serf cleans the TF Node. 23477_ System corrupted: Energy discharge (-38). 23479_ K-01 Serf cleans the TF Node. 23482_ ALERT: Potential suspicious activity detected, Programmers report to Access Zone 1G. 23512_ U-05 Engineer builds a Wall. 23569_ System corrupted: Heat flow error (+103). 23586_ U-05 Engineer builds a Wall. 23587_ U-05 Engineer destroyed. 23602_ ALERT: Security rotation in progress. 23614_ Penetrated by Slug. 23614_ Slug penetrates Wall. 23619_ Slug penetrates Terminal. 23619_ Terminal disabled. 23628_ Sealed Barrier breached. 23634_ The Access Shell folds into the floor. 23634_ EXIT=FOUND 23644_ EXIT=IDENTIFIED: SURFACE [Achievement: On My Own Terms] Map ----- +----------------------------------------------------+ | ? ? # ?##### #?########?# ?? ??? | | ? ? ? ?# ??##?# ############ ? # ? ?? | | # ##### ############ ?? ? | | ""?? ? # ##### ############ ??????#?? | | "?? ? + ? ?? ???? | | # ? ?? ?? ? | | # ##########+#############+####??#????? | | ?###??##?## ??# ## ????? #?#????? | | ## ? ?# ### # ? ? ? ###????? | | ## ? # ### ## ? ?????????? | | #? ? ? # ?## ## ? ??????????? | | #? ?""" # ### [= ## ? "??? ???????? | | ## "?? # ?## * ! #? ? ?"? ????????? | | ?# ? " ??# #?# #???"?" ?????????? | | #??? ???? + ?#?# ## ?? ???????? | | ?? ? #? ?## " ""T"""" #???##???##???????? | | #? ?? ? ?#??### """"""""""" ##?##???##?#??????? | | ??##??#?### ??####Y#############?#?#?#???????????? | | #?##?#?#??? ######;###?#?#####?##?##??###???????? | | ????#???##? ??#??### ##########?#??##?#??????????? | | ??#?###?#?# ????T"""" "?"? ? ? ?#???????? | | ????????##?? "?" """" "?????? ? ?????????? | | ????#####??? " """???? ??????????? | | #????#?###??? ?" "??? ?? ???????????? | | ?#?????#?#? ?? ??" "" """? ???? ?????????? | | ?#?#???##???? ??" @" "????? ????????????? | | ?#?##????##?? ? ?" ""???? ????????????? | | ????????????? ??" "???? ?????????????? | | ?#??##??#?????? ? ?" """? ??????????????? | | ?#??#??????H??? ????" "?"????????????????? | | ?##????????? ??#????"##########??#???????????????? | | ?????????????????#????????????????#??????????????? | | ??#????????? ?#?#?#????#??#??????????????????????? | | ? ?????? ????#??#????????#??????#???????????????? | | ???????? ?????????????#?????#???????????????????? | | ???????? ?????#??????????????????????????????????? | | ????"????????????#???????????????????????????????? | | ?????? ??????????????????? ?????????????????????? | | ????????? ???????? ? ????? ??????????????????????? | | ????????????? ???????????????????????????????????? | | ?????????????????????????????????????????????????? | | ?????????????????????????????????????????????????? | | ?????????????????????????????????????????????????? | | ?????????????????????????????????????????????????? | | ?????????????????????????????????????????????????? | | ?????????????????????????????????????????????????? | | ?????????????????????????????????????????????????? | | ?????????????????????????????????????????????????? | | ?????????????????????????????????????????????????? | | ?????????????????????????????????????????????????? | +----------------------------------------------------+ Best States ------------- Heat Dissipation 87 Energy Generation 48 Energy Capacity 410 Matter Stores 300 Matter Capacity 300 Sight Range 16 Robot Scan Range 20 Terrain Scan Range 24 Terrain Scan Density 210 ECM Strength 1 Jamming Range 14 Additional Mass Support 16 Armor Coverage 525 Resistance: KI 25 Utility Shielding 66 Phase Shifting 10 Evasion (%) 67 Targeting Accuracy 12 Core Analysis 6 Recoil Reduction 2 Matter Filtering 30 Kinecelleration 30 Offensive Hacking 22 Defensive Hacking 14 Item Schematics ----------------- Assault Drone Bay | -5/Zhirov | Free Exp. Heat Sink | -5/Zhirov | Free Exp. Optical Array | -5/Zhirov | Free Imp. Arc Thrower | -5/Zhirov | Free Robot Schematics ------------------ None Fabricated ------------ Nothing Repaired ---------- Imp. Shield Generator | 10% | -4/Factory Adv. KE Penetrator | 63% | -3/Research | Broken Studied --------- Lgt. Fission Core | -3/Testing | Hacked Alien Tech Used ----------------- Integrated Reactor Core Expander Transdimensional Reconstructor Achievements -------------- Chop Chop On My Own Terms Challenges ------------ None Game ------ Seed AblativeStrikeBoomstick Manual? 0 Play Time 04:39:43 Cumulative 345.5 hours Start 2026.01.27 @ 11:51:03 End 2026.01.29 @ 16:29:46 Sessions 13 Manual Loads 0 Difficulty Rogue Special Mode None Game No. 97 Rogue 91 Adventurer 0 Explorer 6 Win Type 0 Total 20 Types 10/1/3/1/1/0/2/1/0/1 Lore% 88 Gallery% 79 Achievement% 71 Wizard Run 0 Options --------- Layout 1 ASCII 0 Keyboard 0 Movement Mouse Keybinds 0 Fullscreen 2 Font 24/Smallcaps Map View 50x35 Zoom Use 0% Tactical HUD 1 Map Filters NONE Filters NONE Steam 1 RUN: bea9bddd-5f70-40ec-9c48-cb4361b58b44